[Event "44th Chess Olympiad Open 2022"]
[Site "Chennai"]
[Date "2022.08.06"]
[Round "8.60"]
[White "Thing, Bibek"]
[Black "Islam Sh.Nour, Kassim"]
[Result "1-0"]
[WhiteElo "2260"]
[BlackElo "1873"]
[Annotator "RC"]
[PlyCount "153"]
[EventDate "2022.??.??"]
[TimeControl "60"]

1. e4 {[%emt 0:01:20]} b6 {[%emt 0:00:03]} 2. d4 {[%emt 0:00:23]} Bb7 {[%emt 0:
00:00]} 3. Bd3 {[%emt 0:00:11]} e6 {[%emt 0:00:24]} 4. Nf3 {[%emt 0:01:10]} c5
{[%emt 0:00:25]} 5. O-O {[%emt 0:00:47]} cxd4 {[%emt 0:00:21]} 6. Nxd4 {
[%emt 0:00:17]} Nf6 {[%emt 0:00:11]} 7. Nc3 {[%emt 0:04:41]} Nc6 {[%emt 0:00:
00]} 8. Nxc6 {[%emt 0:05:39]} Bxc6 {[%emt 0:00:11]} 9. Qe2 {[%emt 0:01:52]} Bc5
{[%emt 0:07:34]} 10. e5 {[%emt 0:07:03]} Nd5 {[%emt 0:00:17]} 11. Ne4 {[%emt 0:
00:00]} Qc7 {[%emt 0:03:21]} 12. Qh5 {[%emt 0:12:32]} O-O-O {[%emt 0:06:34]}
13. c4 {[%emt 0:06:40]} Nb4 {[%emt 0:01:27]} 14. Nxc5 {[%emt 0:02:23]} bxc5 {
[%emt 0:00:14]} 15. Bb1 {[%emt 0:00:09]} Bb7 {[%emt 0:02:56]} 16. Be3 {[%emt 0:
00:00]} f5 {[%emt 0:08:12]} 17. exf6 {[%emt 0:02:49]} gxf6 {[%emt 0:00:08]} 18.
Qxc5 {[%emt 0:00:38]} Nc6 {[%emt 0:00:53]} 19. Be4 {[%emt 0:02:29]} Rhg8 {
[%emt 0:03:14]} 20. g3 {[%emt 0:04:55]} d6 {[%emt 0:04:01]} 21. Qb5 {[%emt 0:
00:00]} Ne5 {[%emt 0:05:38]} 22. Bxb7+ {[%emt 0:01:32]} Qxb7 {[%emt 0:02:23]}
23. Qxb7+ {[%emt 0:00:19]} Kxb7 {[%emt 0:00:06]} 24. b3 {[%emt 0:00:15]} h5 {
[%emt 0:00:24]} 25. Rad1 {[%emt 0:01:05]} Nf3+ {[%emt 0:03:03]} 26. Kg2 {
[%emt 0:00:51]} Nh4+ {[%emt 0:00:05]} 27. Kh3 {[%emt 0:02:24]} Nf5 {[%emt 0:00:
00]} 28. Rfe1 {[%emt 0:00:30]} Rg6 {[%emt 0:02:08]} 29. Rd3 {[%emt 0:05:36]}
Rdg8 {[%emt 0:03:04]} 30. Bc1 {[%emt 0:01:16]} e5 {[%emt 0:00:45]} 31. Ba3 {
[%emt 0:00:27]} Kc6 {[%emt 0:00:58]} 32. Red1 {[%emt 0:00:37]} Nd4 {[%emt 0:00:
00]} 33. Bb2 {[%emt 0:02:39]} Nf5 {[%emt 0:01:00]} 34. Rf3 {[%emt 0:00:26]} Nh6
{[%emt 0:00:10]} 35. Ba3 {[%emt 0:00:45]} Nf7 {[%emt 0:00:13]} 36. Rfd3 {
[%emt 0:01:17]} f5 {[%emt 0:02:07]} 37. c5 {[%emt 0:02:03]} dxc5 {[%emt 0:00:
00]} 38. Rc1 {[%emt 0:09:18]} Ng5+ {[%emt 0:01:47]} 39. Kg2 {[%emt 0:00:58]}
Ne6 {[%emt 0:00:25]} 40. Rdc3 {[%emt 0:02:14]} h4 {[%emt 0:02:34]} 41. Bxc5 {
[%emt 0:30:46]} hxg3 {[%emt 0:30:11]} 42. hxg3 {[%emt 0:00:35]} Rh8 {[%emt 0:
00:00]} 43. Bd4+ {[%emt 0:08:33]} Kd5 {[%emt 0:00:29]} 44. Bxa7 {[%emt 0:00:55]
} e4 {[%emt 0:02:04]} 45. Rd1+ {[%emt 0:00:00]} Ke5 {[%emt 0:00:00]} 46. Bd4+ {
[%emt 0:00:00]} Nxd4 {[%emt 0:00:00]} 47. Rc5+ {[%emt 0:00:00]} Kd6 {[%emt 0:
00:00]} 48. Ra5 {[%emt 0:00:00]} Kc7 {[%emt 0:00:00]} 49. Rxd4 {[%emt 0:00:00]}
e3 {[%emt 0:00:00]} 50. Rc5+ {[%emt 0:00:00]} Kb6 {[%emt 0:00:00]} 51. Rxf5 {
[%emt 0:00:00]} Re6 {[%emt 0:00:00]} 52. fxe3 {[%emt 0:00:00]} Rxe3 {[%emt 0:
00:00]} 53. Rf3 {[%emt 0:00:00]} Re2+ {[%emt 0:00:00]} 54. Rf2 {[%emt 0:00:00]}
Re3 {[%emt 0:00:00]} 55. Rdf4 {[%emt 0:00:00]} Rg8 {[%emt 0:00:00]} 56. R4f3 {
[%emt 0:00:00]} Re1 {[%emt 0:00:00]} 57. Rf8 {[%emt 0:00:00]} Rg7 {[%emt 0:00:
00]} 58. R2f7 {[%emt 0:00:00]} Re2+ {[%emt 0:00:00]} 59. Kh3 {[%emt 0:00:00]}
Rg5 {[%emt 0:00:00]} 60. Rf6+ {[%emt 0:00:00]} Kc7 {[%emt 0:00:00]} 61. R8f7+ {
[%emt 0:00:00]} Kb8 {[%emt 0:00:00]} 62. Rh7 {[%emt 0:00:15]} Rg8 {[%emt 0:00:
00]} 63. Rb6+ {[%emt 0:00:08]} Ka8 {[%emt 0:00:00]} 64. Ra6+ {[%emt 0:00:06]}
Kb8 {[%emt 0:00:00]} 65. Raa7 {[%emt 0:00:38]} Re3 {[%emt 0:00:00]} 66. Rhb7+ {
[%emt 0:00:20]} Kc8 {[%emt 0:00:00]} 67. Ra8+ {[%emt 0:00:42]} Kxb7 {[%emt 0:
00:00]} 68. Rxg8 {[%emt 0:00:02]} Re2 {[%emt 0:00:00]} 69. Rd8 {[%emt 0:00:39]}
Rxa2 {[%emt 0:00:00]} 70. g4 {[%emt 0:00:16]} Ra1 {[%emt 0:00:00]} 71. g5 {
[%emt 0:00:17]} Rh1+ {[%emt 0:00:00]} 72. Kg4 {[%emt 0:00:02]} Rg1+ {[%emt 0:
00:00]} 73. Kf5 {[%emt 0:00:16]} Rg3 {[%emt 0:00:00]} 74. b4 {[%emt 0:00:29]}
Rg1 {[%emt 0:00:00]} 75. g6 {[%emt 0:01:09]} Rf1+ {[%emt 0:00:00]} 76. Ke6 {
[%emt 0:00:11]} Kc7 {[%emt 0:00:00]} 77. Rd5 {[%emt 0:01:13]} 1-0

[Event "44th Chess Olympiad Open 2022"]
[Site "Chennai"]
[Date "2022.08.06"]
[Round "8.60"]
[White "Bhandari, Kshitiz"]
[Black "Nor, Mohamed Ahmed"]
[Result "1/2-1/2"]
[WhiteElo "2071"]
[BlackElo "1907"]
[Annotator "NA RC"]
[PlyCount "158"]
[EventDate "2022.??.??"]
[TimeControl "60"]

1. Nf3 {[%emt 0:00:04]} Nf6 {[%emt 0:00:32]} 2. c4 {[%emt 0:00:09]} c5 {
[%emt 0:00:20]} 3. g3 {[%emt 0:00:11]} g6 {[%emt 0:00:51]} 4. b3 {[%emt 0:00:
00]} Bg7 {[%emt 0:00:20]} 5. Bb2 {[%emt 0:00:02]} Nc6 {[%emt 0:00:32]} 6. Bg2 {
[%emt 0:00:06]} O-O {[%emt 0:01:22]} 7. O-O {[%emt 0:00:05]} d6 {[%emt 0:01:10]
} 8. Nc3 {[%emt 0:03:36]} e5 {[%emt 0:00:44]} 9. d3 {[%emt 0:00:23]} Be6 {
[%emt 0:01:11]} 10. Ng5 {[%emt 0:00:41]} Qd7 {[%emt 0:01:19]} 11. a3 {[%emt 0:
00:00]} Rad8 {[%emt 0:00:39]} 12. b4 {[%emt 0:00:32]} cxb4 {[%emt 0:03:10]} 13.
axb4 {[%emt 0:00:08]} Nxb4 {[%emt 0:00:29]} 14. Rxa7 {[%emt 0:00:07]} Nc6 {
[%emt 0:01:03]} 15. Ra4 {[%emt 0:01:28]} h6 {[%emt 0:02:42]} 16. Nxe6 {[%emt 0:
00:00]} Qxe6 {[%emt 0:04:42]} 17. Nd5 {[%emt 0:01:15]} Qd7 {[%emt 0:04:05]} 18.
Nc3 {[%emt 0:04:45]} Ra8 {[%emt 0:00:43]} 19. e3 {[%emt 0:03:17]} Rfb8 {
[%emt 0:01:28]} 20. Nb5 {[%emt 0:02:26]} Bf8 {[%emt 0:02:21]} 21. e4 {[%emt 0:
00:00]} Nh5 {[%emt 0:01:30]} 22. Bf3 {[%emt 0:01:48]} Ng7 {[%emt 0:00:26]} 23.
Bg2 {[%emt 0:00:47]} Ne6 {[%emt 0:01:31]} 24. Rxa8 {[%emt 0:01:19]} Rxa8 {
[%emt 0:00:12]} 25. f4 {[%emt 0:00:03]} Nc5 {[%emt 0:02:52]} 26. Bc3 {[%emt 0:
00:00]} Qd8 {[%emt 0:03:18]} 27. d4 {[%emt 0:00:20]} exd4 {[%emt 0:01:53]} 28.
Nxd4 {[%emt 0:00:02]} Qb6 {[%emt 0:05:13]} 29. Kh1 {[%emt 0:02:26]} Ra3 {
[%emt 0:00:53]} 30. Nb5 {[%emt 0:00:39]} Ra2 {[%emt 0:03:18]} 31. e5 {[%emt 0:
00:00]} dxe5 {[%emt 0:02:52]} 32. fxe5 {[%emt 0:00:03]} Ne6 {[%emt 0:01:46]}
33. Qf3 {[%emt 0:03:36]} Ncd8 {[%emt 0:01:05]} 34. Nd6 {[%emt 0:00:45]} Qc7 {
[%emt 0:04:50]} 35. Qd5 {[%emt 0:01:14]} Qc6 {[%emt 0:01:33]} 36. h4 {[%emt 0:
00:00]} h5 {[%emt 0:00:43]} 37. Ne4 {[%emt 0:04:35]} Be7 {[%emt 0:02:51]} 38.
Rd1 {[%emt 0:05:51]} Kg7 {[%emt 0:04:18]} 39. Nd6 {[%emt 0:04:12]} Rc2 {
[%emt 0:01:47]} 40. Nb5 {[%emt 0:00:11]} Bc5 {[%emt 0:01:54]} 41. Qe4 {[%emt 0:
00:00]} Qxe4 {[%emt 0:32:32]} 42. Bxe4 {[%emt 0:00:11]} Re2 {[%emt 0:01:35]}
43. Bf3 {[%emt 0:00:27]} Re3 {[%emt 0:00:33]} 44. Kg2 {[%emt 0:00:16]} Nc6 {
[%emt 0:02:13]} 45. Rd5 {[%emt 0:03:16]} Ne7 {[%emt 0:01:27]} 46. Rxc5 {
[%emt 0:01:00]} Rxc3 {[%emt 0:02:00]} 47. Nxc3 {[%emt 0:00:11]} Nxc5 {[%emt 0:
00:00]} 48. Bd5 {[%emt 0:04:03]} Nf5 {[%emt 0:02:56]} 49. Nb5 {[%emt 0:02:22]}
Kf8 {[%emt 0:02:03]} 50. Kf3 {[%emt 0:05:34]} Ke7 {[%emt 0:00:42]} 51. Nd6 {
[%emt 0:01:21]} Nxd6 {[%emt 0:04:37]} 52. exd6+ {[%emt 0:00:13]} Kf6 {[%emt 0:
00:00]} 53. Ke3 {[%emt 0:00:46]} b6 {[%emt 0:00:48]} 54. Kd4 {[%emt 0:00:48]}
Ne6+ {[%emt 0:03:09]} 55. Kc3 {[%emt 0:09:26]} Ke5 {[%emt 0:03:40]} 56. d7 {
[%emt 0:00:57]} Nd8 {[%emt 0:00:36]} 57. Kb4 {[%emt 0:00:04]} Kd6 {[%emt 0:00:
00]} 58. Kb5 {[%emt 0:00:08]} Kc7 {[%emt 0:00:45]} 59. Ka6 {[%emt 0:00:06]} f6
{[%emt 0:03:22]} 60. Kb5 {[%emt 0:02:06]} g5 {[%emt 0:01:18]} 61. Bf3 {[%emt 0:
00:00]} Ne6 {[%emt 0:02:45]} 62. Bxh5 {[%emt 0:00:29]} Nd4+ {[%emt 0:03:29]}
63. Ka6 {[%emt 0:00:03]} gxh4 {[%emt 0:01:14]} 64. gxh4 {[%emt 0:00:10]} Nf5 {
[%emt 0:00:38]} 65. d8=Q+ {[%emt 0:00:15]} Kxd8 {[%emt 0:00:33]} 66. Kxb6 {
[%emt 0:00:02]} Nxh4 {[%emt 0:00:53]} 67. c5 {[%emt 0:01:41]} Nf5 {[%emt 0:00:
00]} 68. c6 {[%emt 0:00:14]} Ne7 {[%emt 0:01:42]} 69. c7+ {[%emt 0:00:11]} Kd7
{[%emt 0:00:25]} 70. Kb7 {[%emt 0:00:13]} f5 {[%emt 0:01:27]} 71. Bg6 {[%emt 0:
00:00]} Ke6 {[%emt 0:00:32]} 72. Bh5 {[%emt 0:00:02]} Kd7 {[%emt 0:00:49]} 73.
Bf3 {[%emt 0:00:05]} Kd6 {[%emt 0:00:00]} 74. Bg2 {[%emt 0:00:00]} Kd7 {
[%emt 0:00:00]} 75. Bc6+ {[%emt 0:00:00]} Kd6 {[%emt 0:00:00]} 76. Be8 {
[%emt 0:00:00]} f4 {[%emt 0:00:00]} 77. Bh5 {[%emt 0:00:00]} Kd7 {[%emt 0:00:
00]} 78. Bf3 {[%emt 0:00:00]} Kd6 {[%emt 0:00:00]} 79. Bg4 {[%emt 0:00:00]} Kc5
{[%emt 0:00:00]} 1/2-1/2

[Event "44th Chess Olympiad Open 2022"]
[Site "Chennai"]
[Date "2022.08.06"]
[Round "8.60"]
[White "Abdirahman Omar Sheikh"]
[Black "Chaulagain, Purushottam"]
[Result "0-1"]
[WhiteElo "2051"]
[BlackElo "1975"]
[Annotator "NA RC"]
[PlyCount "93"]
[EventDate "2022.??.??"]
[TimeControl "60"]

1. d4 {[%emt 0:00:08]} d5 {[%emt 0:00:08]} 2. c4 {[%emt 0:00:04]} e6 {[%emt 0:
00:00]} 3. Nc3 {[%emt 0:00:03]} c6 {[%emt 0:00:04]} 4. e3 {[%emt 0:00:16]} f5 {
[%emt 0:00:14]} 5. Nf3 {[%emt 0:00:25]} Nf6 {[%emt 0:00:07]} 6. cxd5 {[%emt 0:
00:00]} cxd5 {[%emt 0:02:11]} 7. Bb5+ {[%emt 0:01:33]} Bd7 {[%emt 0:01:02]} 8.
Bxd7+ {[%emt 0:00:50]} Nbxd7 {[%emt 0:00:38]} 9. Qb3 {[%emt 0:04:41]} Bd6 {
[%emt 0:10:01]} 10. Qxb7 {[%emt 0:04:34]} O-O {[%emt 0:00:19]} 11. O-O {
[%emt 0:00:25]} Qe7 {[%emt 0:04:30]} 12. Qa6 {[%emt 0:01:14]} Rfb8 {[%emt 0:00:
00]} 13. b3 {[%emt 0:05:00]} Rb6 {[%emt 0:03:23]} 14. Qe2 {[%emt 0:00:14]} Rc8
{[%emt 0:04:33]} 15. Bb2 {[%emt 0:00:56]} Rbc6 {[%emt 0:01:17]} 16. Na4 {
[%emt 0:11:56]} Ba3 {[%emt 0:04:30]} 17. Ne1 {[%emt 0:05:26]} Bxb2 {[%emt 0:00:
00]} 18. Qxb2 {[%emt 0:02:12]} e5 {[%emt 0:05:16]} 19. f3 {[%emt 0:12:33]} e4 {
[%emt 0:06:02]} 20. Qe2 {[%emt 0:06:24]} g6 {[%emt 0:04:33]} 21. f4 {[%emt 0:
00:00]} Qb4 {[%emt 0:01:29]} 22. h3 {[%emt 0:00:54]} h5 {[%emt 0:01:58]} 23.
Rb1 {[%emt 0:07:54]} Kf7 {[%emt 0:01:43]} 24. Qb2 {[%emt 0:02:33]} Ne8 {
[%emt 0:04:08]} 25. Rf2 {[%emt 0:02:40]} Nd6 {[%emt 0:00:37]} 26. Nc2 {[%emt 0:
00:00]} Qa5 {[%emt 0:02:30]} 27. a3 {[%emt 0:01:49]} Qb5 {[%emt 0:05:25]} 28.
Nb4 {[%emt 0:04:32]} R6c7 {[%emt 0:00:21]} 29. Qe2 {[%emt 0:02:00]} Ke6 {
[%emt 0:01:37]} 30. Na6 {[%emt 0:01:36]} Rc1+ {[%emt 0:01:07]} 31. Rxc1 {
[%emt 0:00:11]} Rxc1+ {[%emt 0:00:05]} 32. Kh2 {[%emt 0:00:03]} Qxe2 {[%emt 0:
00:00]} 33. Rxe2 {[%emt 0:00:05]} Nb5 {[%emt 0:00:50]} 34. N6c5+ {[%emt 0:00:
00]} Kd6 {[%emt 0:00:45]} 35. Nxd7 {[%emt 0:00:14]} Kxd7 {[%emt 0:00:05]} 36.
Nc5+ {[%emt 0:00:09]} Kd6 {[%emt 0:01:06]} 37. Kg3 {[%emt 0:01:11]} Nc3 {
[%emt 0:00:36]} 38. Rd2 {[%emt 0:02:38]} Nd1 {[%emt 0:02:49]} 39. Kh4 {[%emt 0:
00:00]} Nxe3 {[%emt 0:00:27]} 40. Kg5 {[%emt 0:00:23]} Nf1 {[%emt 0:00:39]} 41.
Rb2 {[%emt 0:33:28]} Rd1 {[%emt 0:31:57]} 42. Kxg6 {[%emt 0:00:35]} Rxd4 {
[%emt 0:00:07]} 43. Na4 {[%emt 0:00:20]} Ng3 {[%emt 0:02:27]} 44. Nc3 {[%emt 0:
00:00]} Rd3 {[%emt 0:01:44]} 45. Ne2 {[%emt 0:00:31]} d4 {[%emt 0:03:18]} 46.
Nxg3 {[%emt 0:01:15]} Rxg3+ {[%emt 0:00:07]} 47. Kxf5 {[%emt 0:00:05]} 0-1

[Event "44th Chess Olympiad Open 2022"]
[Site "Chennai"]
[Date "2022.08.06"]
[Round "8.60"]
[White "Abdulkadir Mohamed Warsame"]
[Black "Lama, Milan"]
[Result "1-0"]
[WhiteElo "1820"]
[BlackElo "2024"]
[Annotator "NA RC"]
[PlyCount "75"]
[EventDate "2022.??.??"]
[TimeControl "60"]

1. c4 {[%emt 0:00:13]} c5 {[%emt 0:00:05]} 2. Nf3 {[%emt 0:00:20]} g6 {[%emt 0:
00:00]} 3. d4 {[%emt 0:02:17]} cxd4 {[%emt 0:00:09]} 4. Nxd4 {[%emt 0:00:07]}
Bg7 {[%emt 0:00:17]} 5. e4 {[%emt 0:00:55]} Nc6 {[%emt 0:00:26]} 6. Be3 {
[%emt 0:00:18]} Nf6 {[%emt 0:00:20]} 7. Nc3 {[%emt 0:00:15]} d6 {[%emt 0:00:57]
} 8. Nxc6 {[%emt 0:03:09]} bxc6 {[%emt 0:00:07]} 9. Be2 {[%emt 0:00:21]} O-O {
[%emt 0:00:59]} 10. O-O {[%emt 0:00:41]} a5 {[%emt 0:04:11]} 11. Rc1 {[%emt 0:
00:00]} Rb8 {[%emt 0:01:18]} 12. Qc2 {[%emt 0:05:57]} Qc7 {[%emt 0:14:24]} 13.
c5 {[%emt 0:10:59]} d5 {[%emt 0:04:38]} 14. exd5 {[%emt 0:00:54]} Nxd5 {
[%emt 0:01:01]} 15. Nxd5 {[%emt 0:00:57]} cxd5 {[%emt 0:02:23]} 16. b3 {
[%emt 0:01:28]} e5 {[%emt 0:01:02]} 17. Bd2 {[%emt 0:00:42]} Bf5 {[%emt 0:00:
00]} 18. Qc3 {[%emt 0:02:48]} Ra8 {[%emt 0:03:56]} 19. Qg3 {[%emt 0:09:42]}
Rfc8 {[%emt 0:05:52]} 20. a3 {[%emt 0:04:13]} Qe7 {[%emt 0:08:14]} 21. b4 {
[%emt 0:04:07]} axb4 {[%emt 0:02:28]} 22. Bxb4 {[%emt 0:08:36]} e4 {[%emt 0:00:
00]} 23. c6 {[%emt 0:07:11]} Qe6 {[%emt 0:02:06]} 24. Bb5 {[%emt 0:00:33]} Bb2
{[%emt 0:17:21]} 25. Rc2 {[%emt 0:00:31]} Be5 {[%emt 0:03:19]} 26. Qh4 {
[%emt 0:13:11]} d4 {[%emt 0:06:44]} 27. Rfc1 {[%emt 0:03:37]} d3 {[%emt 0:00:
00]} 28. Rd2 {[%emt 0:00:10]} Bd4 {[%emt 0:01:12]} 29. Bxd3 {[%emt 0:06:23]}
Bxf2+ {[%emt 0:04:20]} 30. Rxf2 {[%emt 0:00:24]} exd3 {[%emt 0:00:56]} 31. c7 {
[%emt 0:02:22]} Qb6 {[%emt 0:04:37]} 32. Qf4 {[%emt 0:04:34]} Qe6 {[%emt 0:00:
00]} 33. Qd4 {[%emt 0:01:21]} Qd7 {[%emt 0:00:46]} 34. Qf6 {[%emt 0:00:59]} Qe6
{[%emt 0:00:29]} 35. Qc3 {[%emt 0:00:51]} Ra7 {[%emt 0:01:05]} 36. Qd4 {
[%emt 0:01:10]} Raxc7 {[%emt 0:00:39]} 37. Rxc7 {[%emt 0:00:25]} Rxc7 {[%emt 0:
00:00]} 38. Qd8+ {[%emt 0:00:07]} 1-0

[Event "44th Chess Olympiad Open 2022"]
[Site "Chennai"]
[Date "2022.08.06"]
[Round "8.61"]
[White "Fellman, Mike"]
[Black "Mukoko, Isaac"]
[Result "1-0"]
[WhiteElo "2107"]
[BlackElo "1805"]
[Annotator "NA RC"]
[PlyCount "95"]
[EventDate "2022.??.??"]
[TimeControl "60"]

1. d4 {[%emt 0:00:01]} Nf6 {[%emt 0:00:15]} 2. c4 {[%emt 0:00:03]} e6 {[%emt 0:
00:00]} 3. Nc3 {[%emt 0:00:11]} Bb4 {[%emt 0:00:28]} 4. e3 {[%emt 0:00:07]} O-O
{[%emt 0:00:52]} 5. Bd3 {[%emt 0:00:05]} d5 {[%emt 0:00:36]} 6. a3 {[%emt 0:00:
00]} Bxc3+ {[%emt 0:04:12]} 7. bxc3 {[%emt 0:00:06]} dxc4 {[%emt 0:00:14]} 8.
Bxc4 {[%emt 0:00:06]} b6 {[%emt 0:00:33]} 9. Nf3 {[%emt 0:02:00]} Bb7 {[%emt 0:
00:00]} 10. O-O {[%emt 0:00:25]} Nbd7 {[%emt 0:00:20]} 11. Bb2 {[%emt 0:01:55]}
Ne4 {[%emt 0:03:27]} 12. Qe2 {[%emt 0:03:38]} Ng5 {[%emt 0:04:29]} 13. Nd2 {
[%emt 0:08:17]} Qf6 {[%emt 0:10:31]} 14. e4 {[%emt 0:08:40]} Qg6 {[%emt 0:00:
00]} 15. f3 {[%emt 0:04:40]} Nh3+ {[%emt 0:04:50]} 16. Kh1 {[%emt 0:00:45]} Nf4
{[%emt 0:00:09]} 17. Qf2 {[%emt 0:00:38]} Rfd8 {[%emt 0:01:45]} 18. Rfd1 {
[%emt 0:04:13]} Rac8 {[%emt 0:01:30]} 19. Bf1 {[%emt 0:01:15]} c5 {[%emt 0:00:
00]} 20. Nc4 {[%emt 0:05:08]} Ba8 {[%emt 0:11:11]} 21. a4 {[%emt 0:02:54]} cxd4
{[%emt 0:05:56]} 22. cxd4 {[%emt 0:01:19]} Rc7 {[%emt 0:01:18]} 23. g3 {
[%emt 0:13:00]} Nh5 {[%emt 0:00:43]} 24. Bd3 {[%emt 0:01:31]} Qh6 {[%emt 0:00:
00]} 25. Ne3 {[%emt 0:01:11]} Nxg3+ {[%emt 0:03:12]} 26. Qxg3 {[%emt 0:01:48]}
Qxe3 {[%emt 0:02:43]} 27. Qxc7 {[%emt 0:01:36]} Qxf3+ {[%emt 0:01:16]} 28. Kg1
{[%emt 0:00:08]} Qe3+ {[%emt 0:02:06]} 29. Kf1 {[%emt 0:00:40]} Qf3+ {[%emt 0:
00:00]} 30. Ke1 {[%emt 0:00:37]} Qe3+ {[%emt 0:00:47]} 31. Be2 {[%emt 0:00:45]}
Qg1+ {[%emt 0:01:10]} 32. Kd2 {[%emt 0:01:02]} Qg5+ {[%emt 0:00:28]} 33. Kc2 {
[%emt 0:01:33]} Bxe4+ {[%emt 0:03:18]} 34. Bd3 {[%emt 0:01:56]} Bxd3+ {[%emt 0:
00:00]} 35. Rxd3 {[%emt 0:00:19]} Qg2+ {[%emt 0:01:58]} 36. Kb3 {[%emt 0:04:24]
} Qd5+ {[%emt 0:04:13]} 37. Ka3 {[%emt 0:02:14]} Nc5 {[%emt 0:01:31]} 38. Re3 {
[%emt 0:04:31]} Na6 {[%emt 0:01:44]} 39. Qe5 {[%emt 0:03:13]} Qc4 {[%emt 0:00:
00]} 40. Qb5 {[%emt 0:02:06]} Qc8 {[%emt 0:00:11]} 41. Rc1 {[%emt 0:30:56]} Qb7
{[%emt 0:30:24]} 42. Rg3 {[%emt 0:04:24]} Qe7+ {[%emt 0:00:36]} 43. Kb3 {
[%emt 0:00:53]} Nc7 {[%emt 0:00:53]} 44. Qe5 {[%emt 0:02:55]} Ne8 {[%emt 0:00:
00]} 45. d5 {[%emt 0:02:33]} Qf8 {[%emt 0:06:56]} 46. dxe6 {[%emt 0:04:03]}
fxe6 {[%emt 0:00:37]} 47. Rc7 {[%emt 0:01:40]} Kh8 {[%emt 0:05:04]} 48. Rcxg7 {
[%emt 0:03:47]} 1-0

[Event "44th Chess Olympiad Open 2022"]
[Site "Chennai"]
[Date "2022.08.06"]
[Round "8.61"]
[White "Njoroge, Martin"]
[Black "Zilleruelo Irizarry, Diego"]
[Result "1-0"]
[WhiteElo "1973"]
[BlackElo "2081"]
[Annotator "NA RC"]
[PlyCount "98"]
[EventDate "2022.??.??"]
[TimeControl "60"]

1. d4 {[%emt 0:03:26]} d5 {[%emt 0:00:04]} 2. c4 {[%emt 0:00:04]} e6 {[%emt 0:
00:00]} 3. Nc3 {[%emt 0:12:26]} a6 {[%emt 0:00:04]} 4. cxd5 {[%emt 0:00:12]}
exd5 {[%emt 0:00:03]} 5. Bf4 {[%emt 0:00:16]} Nf6 {[%emt 0:02:51]} 6. e3 {
[%emt 0:01:23]} Bd6 {[%emt 0:02:07]} 7. Bg5 {[%emt 0:01:45]} c6 {[%emt 0:00:42]
} 8. f4 {[%emt 0:00:11]} h6 {[%emt 0:05:12]} 9. Bh4 {[%emt 0:07:39]} g5 {
[%emt 0:15:38]} 10. fxg5 {[%emt 0:05:18]} hxg5 {[%emt 0:00:04]} 11. Bxg5 {
[%emt 0:00:30]} Rxh2 {[%emt 0:01:02]} 12. Rxh2 {[%emt 0:05:03]} Bg3+ {[%emt 0:
00:00]} 13. Kd2 {[%emt 0:00:53]} Bxh2 {[%emt 0:00:08]} 14. Bd3 {[%emt 0:01:05]}
Qd6 {[%emt 0:23:11]} 15. Qf3 {[%emt 0:07:32]} Ne4+ {[%emt 0:18:46]} 16. Nxe4 {
[%emt 0:08:27]} dxe4 {[%emt 0:00:00]} 17. Qxe4+ {[%emt 0:00:50]} Be6 {[%emt 0:
00:00]} 18. Nf3 {[%emt 0:05:31]} Bg3 {[%emt 0:00:00]} 19. Qh7 {[%emt 0:05:05]}
Qb4+ {[%emt 0:02:00]} 20. Kc2 {[%emt 0:00:58]} Nd7 {[%emt 0:03:07]} 21. Nd2 {
[%emt 0:08:52]} c5 {[%emt 0:17:42]} 22. Qh8+ {[%emt 0:08:05]} Nf8 {[%emt 0:00:
00]} 23. Ne4 {[%emt 0:00:33]} Qa4+ {[%emt 0:03:01]} 24. b3 {[%emt 0:10:46]}
Bxb3+ {[%emt 0:00:25]} 25. axb3 {[%emt 0:00:11]} Qxa1 {[%emt 0:00:04]} 26. Qf6
{[%emt 0:02:20]} Qa2+ {[%emt 0:01:33]} 27. Kd1 {[%emt 0:00:33]} Qxb3+ {[%emt 0:
00:00]} 28. Ke2 {[%emt 0:01:51]} Qe6 {[%emt 0:00:44]} 29. Nxg3 {[%emt 0:00:14]}
Qxf6 {[%emt 0:00:07]} 30. Bxf6 {[%emt 0:00:07]} cxd4 {[%emt 0:00:13]} 31. exd4
{[%emt 0:00:16]} Ne6 {[%emt 0:00:34]} 32. Be4 {[%emt 0:00:57]} Ra7 {[%emt 0:00:
00]} 33. Nf5 {[%emt 0:01:34]} Kd7 {[%emt 0:01:11]} 34. Be5 {[%emt 0:00:24]} b5
{[%emt 0:01:05]} 35. Bb8 {[%emt 0:00:26]} Rc7 {[%emt 0:00:03]} 36. Bxc7 {
[%emt 0:00:17]} Nxc7 {[%emt 0:00:01]} 37. Kd2 {[%emt 0:00:52]} a5 {[%emt 0:00:
00]} 38. Kc3 {[%emt 0:00:18]} Ke6 {[%emt 0:00:11]} 39. Ne3 {[%emt 0:00:22]} Ne8
{[%emt 0:00:35]} 40. Bd5+ {[%emt 0:00:40]} Kf6 {[%emt 0:00:44]} 41. Bc6 {
[%emt 0:30:29]} Nd6 {[%emt 0:30:03]} 42. Nd5+ {[%emt 0:00:40]} Kg5 {[%emt 0:00:
00]} 43. Kd3 {[%emt 0:00:00]} f5 {[%emt 0:00:00]} 44. Nc3 {[%emt 0:00:00]} b4 {
[%emt 0:00:00]} 45. Nb5 {[%emt 0:00:00]} Nc8 {[%emt 0:00:00]} 46. d5 {[%emt 0:
00:00]} Nb6 {[%emt 0:00:00]} 47. Nd6 {[%emt 0:00:00]} a4 {[%emt 0:00:00]} 48.
Nc4 {[%emt 0:00:00]} a3 {[%emt 0:00:00]} 49. Nd2 {[%emt 0:00:00]} Nc8 {[%emt 0:
00:00]} 1-0

[Event "44th Chess Olympiad Open 2022"]
[Site "Chennai"]
[Date "2022.08.06"]
[Round "8.61"]
[White "Pinales Roussel, Gabriel"]
[Black "Oluka Robert Mcligeyo"]
[Result "1-0"]
[WhiteElo "1973"]
[BlackElo "1823"]
[Annotator "NA RC"]
[PlyCount "59"]
[EventDate "2022.??.??"]
[TimeControl "60"]

1. Nf3 {[%emt 0:00:03]} d5 {[%emt 0:00:40]} 2. g3 {[%emt 0:00:07]} e6 {[%emt 0:
00:00]} 3. Bg2 {[%emt 0:00:10]} Nf6 {[%emt 0:00:57]} 4. O-O {[%emt 0:00:10]}
Be7 {[%emt 0:00:05]} 5. c4 {[%emt 0:01:55]} O-O {[%emt 0:01:10]} 6. b3 {
[%emt 0:03:03]} b6 {[%emt 0:01:35]} 7. Bb2 {[%emt 0:00:26]} Bb7 {[%emt 0:00:45]
} 8. e3 {[%emt 0:00:57]} Nbd7 {[%emt 0:02:02]} 9. Qe2 {[%emt 0:03:29]} c5 {
[%emt 0:01:29]} 10. Nc3 {[%emt 0:01:40]} Rc8 {[%emt 0:01:53]} 11. Rac1 {
[%emt 0:03:12]} Qc7 {[%emt 0:02:45]} 12. Ne1 {[%emt 0:02:28]} dxc4 {[%emt 0:00:
00]} 13. bxc4 {[%emt 0:00:17]} Bxg2 {[%emt 0:00:07]} 14. Nxg2 {[%emt 0:00:09]}
Rfd8 {[%emt 0:05:31]} 15. f4 {[%emt 0:00:50]} Qb7 {[%emt 0:05:12]} 16. e4 {
[%emt 0:08:02]} e5 {[%emt 0:00:06]} 17. Nd5 {[%emt 0:02:44]} Nxd5 {[%emt 0:00:
00]} 18. exd5 {[%emt 0:03:09]} Bd6 {[%emt 0:03:00]} 19. Ne3 {[%emt 0:04:14]}
exf4 {[%emt 0:14:04]} 20. Nf5 {[%emt 0:00:25]} f3 {[%emt 0:00:41]} 21. Rxf3 {
[%emt 0:07:09]} Bf8 {[%emt 0:02:55]} 22. Ne7+ {[%emt 0:11:15]} Bxe7 {[%emt 0:
00:00]} 23. Qxe7 {[%emt 0:00:06]} Rf8 {[%emt 0:00:46]} 24. Rcf1 {[%emt 0:01:35]
} Rce8 {[%emt 0:01:19]} 25. Qxe8 {[%emt 0:04:51]} Rxe8 {[%emt 0:02:14]} 26.
Rxf7 {[%emt 0:00:11]} Qb8 {[%emt 0:18:21]} 27. Rxg7+ {[%emt 0:01:38]} Kh8 {
[%emt 0:00:05]} 28. Rxd7+ {[%emt 0:00:17]} Re5 {[%emt 0:00:06]} 29. Bxe5+ {
[%emt 0:00:12]} Qxe5 {[%emt 0:00:05]} 30. Rf8# {[%emt 0:00:03]} 1-0